bitfinex/quotes_SOLUSD_20250308
["timestamp","ask_amount","ask_price","bid_price","bid_amount"]
[1741431669305,0.14216157,138.59,138.56,7.217]
[1741431669499,0.14216157,138.61,138.56,38.94882707]
[1741431669729,0.14216157,138.61,138.57,13.68912707]
[1741431669933,0.14216157,138.61,138.58,13.68912707]
[1741431670125,0.17216157,138.63,138.58,19.75532707]
[1741431670430,0.17216157,138.63,138.59,15.30902707]
[1741431671843,0.03,138.63,138.6,7.215]
[1741431674110,0.03,138.63,138.61,13.68912707]
[1741431674434,0.03,138.63,138.62,13.68912707]
[1741431674815,0.03,138.63,138.62,54.68912707]
[1741431675730,0.03,138.63,138.62,61.90302707]
[1741431677733,0.03,138.63,138.62,41.0]
[1741431678732,0.03,138.63,138.62,61.90302707]
[1741431679644,0.03,138.63,138.62,80.55267593]
[1741431679819,0.03,138.63,138.62,86.75267593]
[1741431680020,0.03,138.63,138.62,94.77327593]
[1741431681248,0.03,138.69,138.65,20.0]
[1741431681459,0.03,138.69,138.66,7.2118]
[1741431681639,0.03,138.69,138.66,20.90092707]
[1741431685933,0.03,138.69,138.67,13.68912707]
[1741431686139,0.03,138.69,138.67,15.19152707]
[1741431687138,0.03,138.69,138.68,7.2108]
[1741431689864,0.03,138.69,138.67,15.19152707]
[1741431690065,0.03,138.69,138.67,22.40272707]
[1741431691259,0.03,138.69,138.65,48.2122]
[1741431691260,0.17216157,138.69,138.65,48.2122]
[1741431691467,0.17216157,138.69,138.65,7.2122]
[1741431692463,7.38246157,138.69,138.64,61.90182707]
[1741431692645,21.07158864,138.69,138.64,54.68912707]
[1741431693449,0.14216157,138.67,138.64,41.0]
[1741431693659,0.14216157,138.67,138.63,15.29622707]
[1741431694237,0.14216157,138.67,138.63,22.50942707]
[1741431694463,0.14216157,138.68,138.64,13.68912707]
[1741431695768,0.17216157,138.69,138.64,20.90172707]
[1741431695951,0.17216157,138.69,138.65,13.68912707]
[1741431696149,13.86128864,138.69,138.63,22.50942707]
[1741431696351,0.14216157,138.67,138.63,20.90232707]
[1741431698970,0.14216157,138.68,138.63,20.90232707]
[1741431699186,0.14216157,138.68,138.64,13.68912707]
[1741431699355,0.14216157,138.68,138.64,20.90192707]
[1741431700073,0.17216157,138.69,138.64,20.90192707]
[1741431701259,21.07178864,138.69,138.63,13.68912707]
[1741431701475,0.14216157,138.67,138.62,60.88912707]
[1741431701646,0.14216157,138.67,138.62,6.2]
[1741431701960,13.83128864,138.67,138.62,13.4139]
[1741431702163,13.83128864,138.68,138.62,13.4139]
[1741431702745,13.83128864,138.68,138.61,13.68912707]
[1741431702944,13.83128864,138.68,138.62,13.68912707]
[1741431703345,0.14216157,138.66,138.61,20.90332707]
[1741431703546,21.04328864,138.66,138.6,63.51102707]
[1741431703758,21.04328864,138.66,138.6,69.71102707]
[1741431705142,0.14216157,138.64,138.6,41.0]
[1741431705345,13.68912707,138.63,138.59,0.033]
[1741431705544,0.14216157,138.61,138.59,0.033]
[1741431707842,13.83128864,138.63,138.59,0.033]
[1741431710472,0.14216157,138.61,138.59,0.033]
[1741431711748,0.14216157,138.62,138.59,0.033]
[1741431712675,0.14216157,138.63,138.59,0.033]
[1741431713766,0.17216157,138.63,138.59,0.033]
[1741431715567,13.86128864,138.63,138.59,0.033]
[1741431715776,0.14216157,138.61,138.59,0.033]
[1741431718751,21.04588864,138.61,138.59,0.033]
[1741431718950,13.83128864,138.6,138.59,0.033]
[1741431719873,21.04628864,138.6,138.59,0.033]
[1741431721362,144.45244578,138.6,138.59,0.0001]
[1741431721962,0.14216157,138.57,138.5,0.033]
[1741431722168,0.14216157,138.54,138.5,0.033]
[1741431722577,0.14216157,138.53,138.5,0.033]
[1741431722766,13.83128864,138.53,138.5,0.033]
[1741431723164,0.14216157,138.53,138.5,0.033]
[1741431724377,13.68912707,138.53,138.5,0.033]
[1741431724581,0.14216157,138.52,138.5,0.033]
[1741431728774,13.83128864,138.54,138.5,0.033]
[1741431729062,21.51998864,138.51,138.5,0.033]
[1741431729280,90.1696375,138.51,138.5,0.033]
[1741431730295,71.51998864,138.51,138.5,0.033]
[1741431730483,28.73958864,138.51,138.5,0.033]
[1741431734673,21.51998864,138.51,138.5,0.033]
[1741431735258,28.73958864,138.51,138.5,0.033]
[1741431735984,97.3892375,138.51,138.5,0.033]
[1741431738367,47.3892375,138.51,138.5,0.033]
[1741431739194,97.3892375,138.51,138.5,0.033]
[1741431742690,179.6892375,138.51,138.5,0.033]
[1741431742998,179.6892375,138.51,138.5,0.0001]
[1741431745192,97.3892375,138.51,138.5,0.0001]
[1741431745896,89.7005375,138.51,138.5,0.0001]
[1741431750601,21.05088864,138.51,138.5,0.0001]
[1741431756005,39.7005375,138.51,138.5,0.0001]
[1741431756194,89.7005375,138.51,138.5,0.0001]
[1741431760304,89.7005375,138.51,138.49,0.0001]
[1741431760497,13.83128864,138.5,138.49,0.0001]
[1741431760882,96.13128864,138.5,138.49,0.0001]
[1741431761086,114.7809375,138.5,138.49,0.0001]
[1741431762313,122.0011375,138.5,138.49,0.0001]
[1741431765116,0.14216157,138.46,138.41,1.5209]
[1741431765295,13.83128864,138.46,138.41,1.5209]
[1741431767119,21.05358864,138.46,138.41,1.5209]
[1741431768423,39.7032375,138.46,138.41,1.5209]
[1741431770522,21.05358864,138.46,138.41,1.5209]
[1741431770833,0.14216157,138.46,138.41,22.43472707]
[1741431770996,0.14216157,138.47,138.43,20.91292707]
[1741431772925,0.14216157,138.48,138.43,20.91292707]
[1741431774322,0.14216157,138.48,138.44,0.033]
[1741431778614,0.14216157,138.48,138.46,15.31682707]
[1741431778925,0.03,138.49,138.47,13.68912707]
[1741431779126,0.03,138.49,138.46,15.31682707]
[1741431780554,0.03,138.49,138.46,22.53862707]
[1741431781158,0.17216157,138.49,138.46,1.6277]
[1741431782335,0.14216157,138.48,138.46,1.6277]
[1741431783347,0.17216157,138.49,138.46,1.6277]
[1741431784345,7.39296157,138.49,138.46,1.6277]
[1741431784953,0.17216157,138.49,138.46,1.6277]
[1741431785465,0.03,138.49,138.46,8.8498]
[1741431787274,0.03,138.49,138.46,1.6607]
[1741431787569,0.14216157,138.48,138.46,1.6607]
[1741431789942,7.36336157,138.48,138.46,1.6607]
[1741431791176,7.39306157,138.49,138.46,1.6607]
[1741431793553,0.03,138.49,138.46,1.6607]
[1741431800050,13.83128864,138.48,138.46,0.033]
[1741431800251,13.83128864,138.47,138.46,0.033]
[1741431801453,21.05298864,138.47,138.46,0.033]
[1741431815204,39.7026375,138.47,138.46,0.0001]
[1741431819908,45.9226375,138.47,138.46,0.0001]
[1741431820281,128.2226375,138.47,138.46,0.0001]
[1741431820584,68.79181043,138.45,138.44,0.033]
[1741431820804,82.4809375,138.45,138.44,0.033]
[1741431821610,18.79181043,138.44,138.38,1.5596]
[1741431821917,0.14216157,138.38,138.35,8.2656]
[1741431822714,0.14216157,138.39,138.35,29.18262707]
[1741431823418,13.83128864,138.39,138.35,8.2656]
[1741431823713,0.14216157,138.39,138.35,8.2656]
[1741431823911,13.83128864,138.41,138.35,29.18262707]
[1741431824297,21.05618864,138.41,138.35,29.18262707]
[1741431827023,0.14216157,138.39,138.35,8.8831]
[1741431827213,0.14216157,138.39,138.35,1.6552]
[1741431827516,0.14216157,138.37,138.35,1.6552]
[1741431828532,0.14216157,138.38,138.35,1.6552]
[1741431829315,7.36866157,138.38,138.35,1.6552]
[1741431830325,0.14216157,138.38,138.35,1.6552]
[1741431830709,7.36866157,138.38,138.35,1.6552]
[1741431831097,0.14216157,138.38,138.35,1.6552]
[1741431831597,21.05788864,138.38,138.32,13.72212707]
[1741431831832,0.14216157,138.35,138.32,0.033]
[1741431834223,21.05928864,138.35,138.32,0.033]
[1741431837238,0.14216157,138.33,138.32,0.033]
[1741431838433,7.37116157,138.33,138.32,0.033]
[1741431838633,21.06028864,138.33,138.32,0.033]
[1741431840242,71.06028864,138.33,138.32,0.033]
[1741431840409,89.7099375,138.33,138.32,0.033]
[1741431843434,13.83128864,138.33,138.32,0.033]
[1741431843817,21.06028864,138.33,138.32,0.033]
[1741431844725,89.7099375,138.33,138.32,0.033]
[1741431848038,71.06028864,138.33,138.32,0.033]
[1741431848436,89.7099375,138.33,138.32,0.033]
[1741431848633,13.83128864,138.32,138.31,0.0001]
[1741431848833,96.13128864,138.32,138.31,0.0001]
[1741431849221,50.14216157,138.29,138.28,2.1157312]
[1741431849434,63.83128864,138.29,138.28,2.1157312]
[1741431850522,71.06238864,138.29,138.28,2.1157312]
[1741431851461,89.7120375,138.29,138.28,2.1157312]
[1741431853024,95.59845217,138.29,138.28,3.12e-05]
[1741431854147,101.81845217,138.29,138.28,3.12e-05]
[1741431855940,20.05128864,138.29,138.28,3.12e-05]
[1741431857151,6.36216157,138.29,138.28,3.12e-05]
[1741431857321,0.14216157,138.29,138.28,3.12e-05]
[1741431861618,0.14216157,138.29,138.28,0.0330312]
[1741431861844,0.17216157,138.29,138.28,0.0330312]
[1741431863133,0.17216157,138.29,138.23,1.5185]
[1741431863134,0.14216157,138.26,138.23,1.5185]
[1741431863336,0.14216157,138.24,138.21,6.3616]
[1741431865545,0.14216157,138.25,138.21,6.3616]
[1741431865737,0.14216157,138.25,138.21,20.05072707]
[1741431869745,0.14216157,138.24,138.21,20.05072707]
[1741431870570,7.37506157,138.26,138.21,20.05072707]
[1741431871455,57.37506157,138.26,138.2,1.0]
[1741431871657,0.14216157,138.22,138.2,1.0]
[1741431872353,7.2348,138.22,138.2,1.0]
[1741431872669,0.14216157,138.21,138.2,1.0]
[1741431873145,0.14216157,138.22,138.2,1.0]
[1741431873338,13.83128864,138.21,138.2,1.0]
[1741431874761,0.14216157,138.21,138.2,1.0]
[1741431879858,0.14216157,138.21,138.2,8.2358]
[1741431880273,0.14216157,138.21,138.2,64.56542707]
[1741431880563,13.71912707,138.29,138.2,47.68342707]
[1741431880765,13.71912707,138.29,138.24,13.68912707]
[1741431881072,13.71912707,138.29,138.23,13.68912707]
[1741431881367,0.03,138.29,138.23,21.48929539]
[1741431881581,21.51929539,138.29,138.23,21.48929539]
[1741431881866,21.51929539,138.29,138.24,21.48929539]
[1741431882247,0.03,138.29,138.24,21.48929539]
[1741431882456,0.17216157,138.29,138.24,21.48929539]
[1741431882748,0.14216157,138.27,138.2,2.6405]
[1741431882949,0.14216157,138.25,138.2,2.6405]
[1741431883141,0.14216157,138.25,138.2,24.12979539]
[1741431884168,0.14216157,138.25,138.2,2.6405]
[1741431884589,0.14216157,138.25,138.2,24.12979539]
[1741431885073,7.37576157,138.25,138.2,2.6405]
[1741431885571,0.14216157,138.23,138.2,2.6405]
[1741431885867,0.14216157,138.23,138.2,1.0]
[1741431887086,0.14216157,138.24,138.2,1.0]
[1741431888596,0.14216157,138.24,138.2,22.48929539]
[1741431888755,0.14216157,138.24,138.21,21.48929539]
[1741431888955,0.14216157,138.24,138.2,22.48929539]
[1741431889276,0.14216157,138.24,138.21,21.48929539]
[1741431889583,0.14216157,138.25,138.21,21.48929539]
[1741431891086,0.14216157,138.25,138.2,1.0]
[1741431891383,0.14216157,138.25,138.2,22.48929539]
[1741431891593,0.14216157,138.23,138.2,22.48929539]
[1741431892775,0.14216157,138.25,138.2,22.48929539]
[1741431892981,7.37556157,138.25,138.2,22.48929539]
[1741431893389,0.14216157,138.25,138.22,21.48929539]
[1741431893558,0.14216157,138.25,138.2,8.2357]
[1741431893764,0.14216157,138.25,138.21,21.48929539]
[1741431893765,0.14216157,138.24,138.21,21.48929539]
[1741431895079,0.14216157,138.24,138.2,1.0]
[1741431895272,0.14216157,138.24,138.2,22.48929539]
[1741431895473,7.37536157,138.25,138.2,22.48929539]
[1741431895788,7.37536157,138.25,138.21,21.48929539]
[1741431895990,0.14216157,138.26,138.22,21.48929539]
[1741431896172,0.14216157,138.26,138.23,21.48929539]
[1741431896787,21.66145696,138.28,138.22,21.48929539]
[1741431897801,0.14216157,138.26,138.22,21.48929539]
[1741431898471,0.17216157,138.28,138.23,21.48929539]
[1741431899174,0.17216157,138.28,138.24,21.48929539]
[1741431899491,0.03,138.28,138.27,21.48929539]
[1741431901192,0.03,138.28,138.26,21.48929539]
[1741431901365,0.03,138.28,138.27,21.48929539]
[1741431901881,0.03,138.28,138.26,21.48929539]
[1741431902193,0.03,138.28,138.25,21.48929539]
[1741431904579,0.03,138.28,138.25,28.72239539]
[1741431905202,0.03,138.28,138.25,21.48929539]
[1741431905505,0.03,138.28,138.25,13.75065527]
[1741431907000,0.03,138.28,138.27,13.75065527]
[1741431907181,0.03,138.28,138.26,13.75065527]
[1741431908387,0.03,138.28,138.27,13.75065527]
[1741431909277,0.03,138.29,138.28,1.5572]
[1741431909503,0.03,138.29,138.28,64.02406266]
[1741431909915,0.03,138.29,138.28,82.67371152]
[1741431910200,0.14216157,138.36,138.28,90.37096517]
[1741431910507,0.14216157,138.37,138.34,21.46686266]
[1741431911014,0.14216157,138.37,138.33,21.46686266]
[1741431911319,26.01821043,138.38,138.33,21.46686266]
[1741431911512,7.36856157,138.38,138.33,21.46686266]
[1741431911691,26.01821043,138.38,138.33,21.46686266]
[1741431912908,0.14216157,138.36,138.32,21.46686266]
[1741431913502,0.14216157,138.37,138.33,21.46686266]
[1741431916007,7.36926157,138.37,138.33,21.46686266]
[1741431918014,0.14216157,138.37,138.33,21.46686266]
[1741431918418,0.14216157,138.37,138.33,28.69576266]
[1741431919220,0.14216157,138.37,138.33,21.46686266]
[1741431919430,0.14216157,138.35,138.31,47.28]
[1741431919716,0.14216157,138.35,138.3,62.46686266]
[1741431919891,0.14216157,138.35,138.3,21.46686266]
[1741431920092,40.25867309,138.35,138.29,21.46686266]
[1741431920718,0.14216157,138.33,138.28,41.0]
[1741431920895,0.14216157,138.33,138.27,28.69886266]
[1741431921218,18.79181043,138.34,138.29,21.46686266]
[1741431922828,18.79181043,138.34,138.27,7.232]
[1741431922829,18.79181043,138.32,138.27,21.46686266]
[1741431923021,40.25867309,138.32,138.26,41.0]
[1741431923200,0.14216157,138.3,138.26,41.0]
[1741431923515,21.60902423,138.3,138.28,0.033]
[1741431923896,46.61347309,138.29,138.28,0.033]
[1741431924894,53.84457309,138.29,138.28,0.033]
[1741431928222,55.38617309,138.29,138.28,0.033]
[1741431928595,105.38617309,138.29,138.28,0.033]
[1741431930799,55.38617309,138.29,138.28,0.033]
[1741431931305,48.15507309,138.29,138.28,0.033]
[1741431931826,41.80027309,138.29,138.28,0.033]
[1741431931993,0.14216157,138.29,138.28,0.033]
[1741431932202,0.14216157,138.29,138.28,21.49986266]
[1741431932411,0.14216157,138.29,138.28,0.033]
[1741431935704,7.37326157,138.29,138.28,0.033]
[1741431936194,0.14216157,138.29,138.28,0.033]
[1741431939117,7.37326157,138.29,138.28,0.033]
[1741431940003,26.02291043,138.29,138.28,0.033]
[1741431940315,7.37326157,138.29,138.28,0.033]
[1741431940525,26.02291043,138.29,138.28,0.033]
[1741431943827,25.61188007,138.29,138.28,0.033]
[1741431945237,13.74852295,138.31,138.28,0.033]
[1741431945437,20.97912295,138.31,138.28,0.033]
[1741431945619,7.2306,138.31,138.28,0.033]
[1741431945818,0.14216157,138.3,138.28,0.033]
[1741431946711,7.37226157,138.31,138.28,0.033]
[1741431947933,21.12078452,138.31,138.28,0.033]
[1741431949541,21.15078452,138.31,138.28,0.033]
[1741431952341,7.40226157,138.31,138.28,0.033]
[1741431952514,7.40226157,138.31,138.28,13.78152295]
[1741431952515,0.03,138.31,138.28,13.78152295]
[1741431953913,0.03,138.31,138.28,21.01312295]
[1741431954417,0.03,138.31,138.29,13.74852295]
[1741431954623,0.03,138.31,138.29,54.74852295]
[1741431954823,0.03,138.31,138.29,41.0]
[1741431957247,0.03,138.31,138.29,54.74852295]
[1741431958840,0.03,138.31,138.29,61.97952295]
[1741431959138,0.17216157,138.31,138.29,54.74852295]
[1741431959749,0.03,138.31,138.29,41.0]
[1741431960043,0.14216157,138.3,138.28,0.033]
[1741431961328,0.17216157,138.31,138.28,0.033]
[1741431961715,0.03,138.31,138.28,0.033]
[1741431961914,0.03,138.31,138.28,13.78152295]
[1741431962510,0.03,138.31,138.29,13.74852295]
[1741431963847,0.03,138.31,138.28,13.78152295]
[1741431964147,0.03,138.31,138.28,21.01282295]
[1741431964318,0.03,138.31,138.29,13.74852295]
[1741431965245,0.03,138.31,138.3,13.74852295]
[1741431965817,0.03,138.31,138.3,54.74852295]
[1741431966230,0.03,138.31,138.3,41.0]
[1741431968741,0.03,138.31,138.3,48.2306]
[1741431969147,0.03,138.31,138.3,61.97912295]
[1741431970245,0.03,138.31,138.3,69.81612295]
[1741431970737,0.03,138.31,138.3,62.58552295]
[1741431973520,0.03,138.31,138.3,69.81612295]
[1741431973721,0.03,138.31,138.3,94.46837181]
[1741431974940,0.03,138.31,138.3,75.81872295]
[1741431975451,0.03,138.31,138.3,62.58552295]
[1741431976617,0.03,138.31,138.3,69.81612295]
[1741431978421,0.03,138.31,138.3,48.837]
[1741431980838,0.03,138.31,138.3,69.81612295]
[1741431981350,0.03,138.37,138.31,40.97]
[1741431981523,0.03,138.37,138.34,13.74852295]
[1741431981721,0.03,138.37,138.34,54.71852295]
[1741431982252,0.03,138.37,138.34,40.97]
[1741431984127,0.03,138.37,138.34,54.71852295]
[1741431984330,0.03,138.37,138.35,13.74852295]
[1741431985052,0.03,138.37,138.35,20.97612295]
[1741431986236,0.03,138.37,138.34,54.71852295]
[1741431986449,0.03,138.37,138.34,61.94692295]
[1741431986933,0.03,138.37,138.35,13.74852295]
[1741431987547,0.03,138.37,138.36,13.74852295]
[1741431987931,0.03,138.37,138.35,13.74852295]
[1741431988357,0.03,138.37,138.34,54.71852295]
[1741431988658,0.03,138.37,138.34,40.97]
[1741431991966,0.03,138.37,138.34,54.71852295]
[1741431993069,0.17216157,138.37,138.34,40.97]
[1741431993364,0.14216157,138.36,138.34,40.97]
[1741431995735,0.17216157,138.37,138.34,40.97]
[1741431995934,0.14216157,138.35,138.34,40.97]
[1741431996755,0.14216157,138.36,138.34,40.97]
[1741431997840,0.03,138.37,138.34,40.97]
[1741432001952,0.14216157,138.36,138.31,60.93852295]
[1741432002150,0.14216157,138.36,138.31,47.19]
[1741432002151,0.14216157,138.34,138.31,47.19]
[1741432003170,0.14216157,138.36,138.33,13.74852295]
[1741432003467,0.14216157,138.36,138.34,13.74852295]
[1741432003657,0.03,138.37,138.34,13.74852295]
[1741432004058,0.03,138.37,138.35,7.228]
[1741432006852,0.03,138.37,138.34,54.71852295]
[1741432007043,0.03,138.37,138.34,61.94682295]
[1741432010567,0.03,138.37,138.34,40.97]
[1741432010872,13.92068452,138.37,138.34,40.97]
[1741432011763,0.17216157,138.37,138.34,40.97]
[1741432012359,0.17216157,138.37,138.34,48.1985]
[1741432013258,0.17216157,138.37,138.34,7.2285]
[1741432013772,0.17216157,138.37,138.33,7.229]
[1741432013971,0.03,138.37,138.33,20.97752295]
[1741432015372,0.03,138.37,138.34,13.74852295]
[1741432016051,0.03,138.37,138.33,20.97752295]
[1741432016567,0.03,138.37,138.35,7.228]
[1741432017968,0.03,138.37,138.36,13.74852295]
[1741432018846,0.03,138.37,138.36,68.16602295]
[1741432024666,0.03,138.37,138.36,86.81567181]
[1741432025488,0.03,138.37,138.36,68.16602295]
[1741432026992,0.0001,138.37,138.36,86.95783338]
[1741432027213,0.0001,138.37,138.36,88.04139753]
[1741432029577,0.0001,138.37,138.36,86.81567181]
[1741432031408,0.0001,138.37,138.36,88.04140525]
[1741432032105,0.03,138.42,138.38,7.2264]
[1741432032403,0.03,138.42,138.4,13.74852295]
[1741432033179,0.03,138.42,138.41,7.2249]
[1741432033503,0.03,138.42,138.41,48.1948]
[1741432034901,0.03,138.42,138.41,40.9699]
[1741432035099,0.17216157,138.42,138.41,40.9699]
[1741432035292,21.14518452,138.42,138.37,6.22]
[1741432035490,0.14216157,138.4,138.37,47.1899]
[1741432035694,13.89068452,138.4,138.37,47.1899]
[1741432035899,0.14216157,138.4,138.37,47.1899]
[1741432037511,0.14216157,138.4,138.37,40.9699]
[1741432038002,7.36766157,138.4,138.37,40.9699]
[1741432038308,0.14216157,138.38,138.35,40.9699]
[1741432038816,0.14216157,138.36,138.35,40.9699]
[1741432039923,0.14216157,138.36,138.32,40.9699]
[1741432040080,0.14216157,138.35,138.31,41.0029]
[1741432040292,13.89068452,138.35,138.31,41.0029]
[1741432040622,13.89068452,138.35,138.31,0.033]
[1741432040791,0.14216157,138.33,138.31,0.033]
[1741432041499,0.14216157,138.32,138.31,0.033]
[1741432043382,15.47128452,138.32,138.31,0.033]
[1741432043887,34.12093338,138.32,138.31,0.033]
[1741432044089,102.72362518,138.32,138.31,0.033]
[1741432044315,18.79181043,138.31,138.28,0.033]
[1741432044482,32.54033338,138.29,138.28,0.033]
[1741432045297,40.28896917,138.29,138.28,0.033]
[1741432045988,47.52006917,138.29,138.28,0.033]
[1741432046815,26.75141043,138.28,138.21,0.033]
[1741432047113,0.14216157,138.24,138.21,0.033]
[1741432047311,21.63932031,138.24,138.21,0.033]
[1741432047811,0.14216157,138.22,138.21,0.033]
[1741432048811,48.52726917,138.22,138.21,0.033]
[1741432049386,55.76206917,138.22,138.21,0.033]
[1741432050201,105.76206917,138.22,138.21,0.033]
[1741432050894,18.79181043,138.18,138.17,0.033]
[1741432051216,40.28896917,138.18,138.17,0.033]
[1741432053018,18.79181043,138.18,138.17,0.033]
[1741432053398,0.14216157,138.18,138.17,0.033]
[1741432053713,18.79181043,138.19,138.17,0.033]
[1741432053886,40.28896917,138.19,138.17,0.033]
[1741432054092,21.63932031,138.18,138.17,0.033]
[1741432054626,40.28896917,138.18,138.17,0.033]
[1741432054813,21.63932031,138.18,138.17,0.033]
[1741432054985,40.28896917,138.18,138.17,0.033]
[1741432055593,18.79181043,138.18,138.17,0.033]
[1741432057714,0.14216157,138.18,138.17,0.033]
[1741432061926,21.63932031,138.18,138.17,0.033]
[1741432062121,47.52586917,138.18,138.17,0.033]
[1741432063932,40.28896917,138.18,138.17,0.033]
[1741432064227,0.14216157,138.18,138.17,0.033]
[1741432067730,18.79181043,138.18,138.17,0.033]
[1741432067904,40.28896917,138.18,138.17,0.033]
[1741432069925,0.14216157,138.18,138.17,0.033]
[1741432072435,0.12505495,138.18,138.17,0.033]
[1741432077914,47.50876255,138.18,138.17,0.033]
[1741432079235,28.85911369,138.18,138.17,0.033]
[1741432079429,47.50876255,138.18,138.17,0.033]
[1741432082545,18.77470381,138.18,138.17,0.033]
[1741432082710,28.85911369,138.18,138.17,0.033]
[1741432082918,119.00592129,138.18,138.17,0.033]
[1741432083318,152.89889481,138.18,138.17,0.033]
[1741432083535,102.89889481,138.18,138.17,0.033]
[1741432083737,47.77426201,138.18,138.17,0.033]
[1741432084133,152.89889481,138.18,138.17,0.033]
[1741432085049,235.19889481,138.18,138.17,0.033]
[1741432085248,209.36480895,138.18,138.17,0.0001]
[1741432090253,0.14216157,138.09,138.0,50.7400312]
[1741432090454,0.14216157,138.05,138.01,21.53585257]
[1741432091343,18.79181043,138.05,138.0,72.27588377]
[1741432091539,40.327663,138.05,138.0,72.27588377]
[1741432092157,21.67801414,138.05,138.0,9.7400312]
[1741432092364,0.14216157,138.03,138.0,9.7400312]
[1741432092858,40.18550143,138.05,138.0,31.27588377]
[1741432092859,0.14216157,138.04,138.0,31.27588377]
[1741432093265,0.14216157,138.04,138.0,9.7400312]
[1741432093464,0.14216157,138.03,138.0,9.7400312]
[1741432093660,21.67801414,138.03,138.0,2.1157312]
[1741432094368,0.14216157,138.01,138.0,2.1157312]
[1741432096352,0.14216157,138.02,138.0,2.1157312]
[1741432096650,0.14216157,138.02,138.0,9.3620312]
[1741432097060,18.79181043,138.09,138.01,23.18025257]
[1741432097281,0.14216157,138.07,138.02,21.53585257]
[1741432097458,21.67801414,138.07,138.01,29.83875257]
[1741432098069,0.14216157,138.05,138.01,29.83875257]
[1741432098271,0.14216157,138.05,138.02,7.2453]
[1741432098568,21.53585257,138.06,138.02,7.2453]
[1741432098569,0.14216157,138.06,138.02,28.78115257]
[1741432098754,0.14216157,138.06,138.03,21.53585257]
[1741432098952,0.14216157,138.06,138.03,62.53585257]
[1741432099153,0.14216157,138.08,138.03,62.53585257]
[1741432100259,0.14216157,138.08,138.04,7.2442]
[1741432100975,0.14216157,138.09,138.04,28.78005257]
[1741432101188,0.14216157,138.09,138.07,21.53585257]
[1741432101356,0.14216157,138.09,138.07,23.18025257]
[1741432101558,21.67801414,138.11,138.07,1.6444]
[1741432102681,0.14216157,138.08,138.05,54.5233]
[1741432103871,0.14216157,138.1,138.06,21.53585257]
[1741432104780,0.14216157,138.11,138.07,7.2427]
[1741432104954,21.67801414,138.11,138.07,7.2427]
[1741432105871,0.14216157,138.11,138.07,7.2427]
[1741432107287,21.67801414,138.1,138.06,7.2761]
[1741432111189,0.14216157,138.1,138.06,46.91995257]
[1741432111375,0.14216157,138.11,138.06,46.91995257]
[1741432111577,21.67801414,138.11,138.06,48.2761]
[1741432111782,0.14216157,138.09,138.06,48.2761]
[1741432114894,21.53585257,138.1,138.06,48.2761]
[1741432114895,21.67801414,138.11,138.06,48.2761]
[1741432117372,21.67801414,138.11,138.06,7.2761]
[1741432119404,0.14216157,138.1,138.06,7.2761]
[1741432120794,0.14216157,138.09,138.06,0.033]
[1741432121103,13.93037895,138.09,138.06,0.033]
[1741432121879,0.14216157,138.07,138.06,0.033]
[1741432124783,13.93037895,138.09,138.06,0.033]
[1741432126111,21.17207895,138.09,138.06,0.033]
[1741432126284,13.93037895,138.09,138.06,0.033]
[1741432127020,0.14216157,138.09,138.06,0.033]
[1741432127190,0.14216157,138.1,138.06,13.82121738]
[1741432127595,0.14216157,138.11,138.06,13.82121738]
[1741432127980,13.93037895,138.11,138.06,13.82121738]
[1741432128185,13.93037895,138.11,138.06,0.033]
[1741432128886,0.14216157,138.09,138.06,0.033]
[1741432129815,0.14216157,138.1,138.06,0.033]
[1741432130694,0.14216157,138.1,138.06,13.82121738]
[1741432131285,0.14216157,138.1,138.06,21.06401738]
[1741432131495,0.14216157,138.1,138.06,13.82121738]
[1741432131696,7.38326157,138.1,138.06,0.033]
[1741432132405,21.17147895,138.1,138.06,0.033]
[1741432133186,0.14216157,138.14,138.06,21.06431738]
[1741432133517,21.16977895,138.14,138.08,13.78821738]
[1741432133900,7.38156157,138.14,138.08,13.78821738]
[1741432134093,0.14216157,138.12,138.07,13.78821738]
[1741432134301,13.93037895,138.11,138.06,47.3101]
[1741432134511,13.93037895,138.11,138.06,6.3101]